bitfinex-derivatives/quotes_ETHF0:USTF0_20251116
["timestamp","ask_amount","ask_price","bid_price","bid_amount"]
[1763297390097,0.9182,3176.6,3176.5,0.84796682]
[1763297390297,0.9182,3176.3,3176.2,1.13337018]
[1763297390899,0.9182,3176.2,3176.1,4.34117018]
[1763297391797,0.9182,3176.1,3176.0,1.13337018]
[1763297393090,0.9182,3176.1,3176.0,2.05577018]
[1763297395094,0.9182,3176.1,3176.0,0.9224]
[1763297397195,0.003978,3177.0,3176.5,0.5479]
[1763297397394,0.922178,3177.0,3176.9,0.9224]
[1763297398004,0.922178,3177.0,3176.9,4.1302]
[1763297398308,0.003978,3177.0,3176.9,4.1302]
[1763297398689,0.922178,3177.0,3176.5,0.5479]
[1763297401504,0.922178,3177.0,3176.9,0.7927]
[1763297402007,0.922178,3177.0,3176.5,0.5479]
[1763297402208,0.8157,3176.5,3176.4,3.2078]
[1763297402508,0.8157,3176.5,3176.4,4.834089]
[1763297403806,0.003978,3177.0,3176.5,0.4787]
[1763297404005,0.003978,3177.0,3176.4,3.2078]
[1763297404006,0.8157,3176.5,3176.4,3.2078]
[1763297404203,0.375978,3177.0,3175.9,5.13654997]
[1763297404204,0.8157,3176.0,3175.9,5.13654997]
[1763297404507,0.8157,3176.0,3175.9,4.83344269]
[1763297406706,0.8157,3176.0,3175.9,4.04074269]
[1763297408403,0.8157,3176.0,3175.9,0.83294269]
[1763297409710,3.2078,3176.1,3176.0,1.2714]
[1763297410003,4.0235,3176.1,3176.0,2.1016629]
[1763297411302,4.0235,3176.1,3176.0,0.8302629]
[1763297411608,0.8157,3176.0,3175.9,0.00267979]
[1763297411905,0.8157,3176.0,3175.9,1.61897814]
[1763297412906,3.2078,3176.1,3176.0,1.2714]
[1763297414009,3.2078,3176.1,3176.0,2.09484411]
[1763297414206,4.0235,3176.1,3175.9,0.00267979]
[1763297414398,3.2078,3176.1,3176.0,1.2386]
[1763297414809,3.2078,3176.1,3176.0,2.06202598]
[1763297415213,0.7826,3176.0,3175.9,0.00267979]
[1763297415413,0.7826,3176.0,3175.9,1.60686558]
[1763297416615,3.2078,3176.1,3176.0,1.2386]
[1763297416820,3.2078,3176.1,3176.0,2.06208579]
[1763297417023,3.9904,3176.1,3176.0,2.06208579]
[1763297417218,3.2078,3176.1,3176.0,2.06208579]
[1763297417626,3.9904,3176.1,3176.0,2.06208579]
[1763297418225,3.2078,3176.1,3176.0,2.06208579]
[1763297419124,3.2078,3176.9,3176.5,0.4579]
[1763297419323,0.7826,3176.7,3176.6,0.82348579]
[1763297419525,3.2078,3176.9,3176.6,1.60418579]
[1763297419828,0.7826,3176.8,3176.7,1.60418579]
[1763297420425,3.2078,3176.9,3176.7,1.60418579]
[1763297420630,3.2078,3176.9,3176.8,1.60374753]
[1763297421021,3.9904,3176.9,3176.8,1.60374753]
[1763297421222,0.7826,3176.6,3176.5,0.4579]
[1763297421519,0.7826,3176.6,3176.5,1.28083286]
[1763297421923,3.9904,3176.9,3176.8,0.7807]
[1763297424315,3.2078,3176.9,3176.8,0.7807]
[1763297424520,3.9904,3176.9,3176.8,0.7807]
[1763297425427,0.7826,3176.6,3176.5,1.2386]
[1763297425631,0.7826,3176.6,3176.5,2.06092972]
[1763297426130,3.2078,3176.9,3176.5,2.06092972]
[1763297426325,0.7826,3176.6,3176.3,3.2078]
[1763297426534,0.7826,3176.4,3176.3,3.9885]
[1763297426826,0.7826,3176.4,3176.3,4.81088686]
[1763297427730,3.9904,3176.9,3176.8,0.7807]
[1763297428734,3.9904,3176.9,3176.5,0.4579]
[1763297428934,0.7884,3176.7,3176.6,1.6051035]
[1763297429135,3.2078,3176.9,3176.8,0.7825]
[1763297431131,3.9962,3176.9,3176.5,0.4579]
[1763297431330,3.9962,3176.9,3176.8,0.7825]
[1763297431531,3.2078,3176.9,3176.8,0.7825]
[1763297431938,3.9962,3176.9,3176.8,0.7825]
[1763297433340,3.2078,3176.9,3176.8,0.7825]
[1763297433539,3.9962,3176.9,3176.8,0.7825]
[1763297434342,0.003978,3177.0,3176.9,0.7825]
[1763297434540,0.792378,3177.0,3176.9,0.7825]
[1763297435039,0.792378,3177.0,3176.5,0.4579]
[1763297435236,0.792378,3177.0,3176.6,0.81829822]
[1763297435435,0.7884,3176.8,3176.7,1.60079822]
[1763297436235,0.7884,3176.8,3176.7,0.81829822]
[1763297442049,0.7884,3176.8,3176.7,1.60079822]
[1763297448154,0.7884,3176.8,3176.7,0.81829822]
[1763297448661,0.7884,3176.8,3176.7,1.60079822]
[1763297449156,0.792378,3177.0,3176.9,0.7825]
[1763297449346,0.792378,3177.0,3176.9,1.60079822]
[1763297449646,0.003978,3177.0,3176.9,1.60079822]
[1763297451354,0.003978,3177.0,3176.9,2.449601]
[1763297452748,3.02255822,3178.0,3177.5,0.4574]
[1763297452955,0.7884,3177.3,3177.2,3.9903]
[1763297453153,0.7884,3177.3,3177.2,4.80988553]
[1763297453450,0.436,3178.0,3177.2,4.80988553]
[1763297453651,0.00472649,3177.9,3177.3,1.60681202]
[1763297453855,0.7884,3177.5,3177.4,1.60208553]
[1763297454056,0.1513,3177.6,3177.5,1.2399]
[1763297454658,0.1513,3177.6,3177.5,0.4574]
[1763297454956,0.15392137,3177.6,3177.5,0.4574]
[1763297455146,0.15392137,3177.6,3177.5,1.2399]
[1763297456560,0.15392137,3177.6,3177.5,0.4574]
[1763297456857,0.15392137,3177.6,3177.5,1.2399]
[1763297457452,0.00262137,3177.6,3177.5,1.2399]
[1763297460262,0.15392137,3177.6,3177.5,0.4574]
[1763297461062,15.66492137,3177.6,3177.5,0.4574]
[1763297461662,15.66492137,3177.6,3177.5,1.2165]
[1763297461849,0.00262137,3177.6,3177.5,1.2165]
[1763297465365,0.05402649,3177.9,3177.5,0.4574]
[1763297465575,0.00472649,3177.9,3177.8,0.7591]
[1763297466265,0.00723275,3177.9,3177.8,0.7591]
[1763297467859,0.05653275,3177.9,3177.8,0.7591]
[1763297468067,0.00723275,3177.9,3177.8,0.7591]
[1763297470464,3.2078,3178.4,3178.3,0.7591]
[1763297470663,18.7138,3178.4,3178.3,0.7591]
[1763297471267,18.7138,3178.4,3178.0,0.4552]
[1763297471268,2.23415822,3178.5,3178.4,0.7591]
[1763297471561,15.505,3178.7,3178.6,0.7591]
[1763297471867,0.0565,3178.5,3178.4,0.00252419]
[1763297480971,2.79319042,3178.5,3177.5,1.1434]
[1763297481159,15.5073519,3178.7,3177.5,1.1434]
[1763297481160,3.2078,3177.9,3177.5,1.1434]
[1763297481366,15.5,3177.8,3177.5,1.1434]
[1763297482074,15.5,3177.8,3177.5,1.14732833]
[1763297482868,3.2078,3177.8,3177.5,1.14732833]
[1763297483177,2.26533067,3177.9,3177.5,1.14732833]
[1763297483178,15.5,3177.7,3177.6,0.686]
[1763297483971,5.47313067,3177.9,3177.6,0.686]
[1763297484273,15.5,3177.8,3177.6,0.686]
[1763297486371,15.5,3177.8,3177.7,0.686]
[1763297487379,15.5,3177.8,3177.5,0.46132833]
[1763297488771,3.2078,3177.9,3177.8,0.686]
[1763297488981,18.0968,3177.9,3177.8,0.686]
[1763297489476,18.0968,3177.9,3177.5,0.46132833]
[1763297489677,2.26565647,3177.8,3177.5,0.46132833]
[1763297489868,2.26565647,3177.7,3177.5,0.46132833]
[1763297490068,2.26565647,3177.8,3177.5,0.46132833]
[1763297490776,2.26565647,3177.7,3177.5,0.46132833]
[1763297491179,2.26565647,3177.8,3177.5,0.46132833]
[1763297491476,2.26565647,3177.7,3177.5,0.00392833]
[1763297493376,2.26565647,3177.8,3177.5,0.00392833]
[1763297493680,2.26565647,3177.7,3177.5,0.00392833]
[1763297494082,2.26565647,3177.8,3177.5,0.00392833]
[1763297494676,2.26565647,3177.8,3177.5,0.40742833]
[1763297497183,2.26565647,3177.8,3177.5,1.03272833]
[1763297497777,15.495,3177.7,3177.5,1.03272833]
[1763297497975,15.495,3177.7,3177.5,0.40742833]
[1763297500680,15.495,3177.7,3177.5,0.00392833]
[1763297501773,2.26565647,3177.8,3177.6,0.6253]
[1763297501978,3.2078,3177.9,3177.7,0.6253]
[1763297502276,15.493,3177.8,3177.7,0.6253]
[1763297502880,3.2078,3177.9,3177.8,0.6253]
[1763297503092,18.7008,3177.9,3177.8,0.6253]
[1763297503384,18.7008,3177.9,3177.5,0.40742833]
[1763297504079,18.7008,3177.9,3177.8,0.6253]
[1763297505286,15.7008,3177.9,3177.8,0.6253]
[1763297510886,15.7008,3177.9,3177.5,0.40742833]
[1763297515089,15.7008,3177.9,3177.8,0.6253]
[1763297515888,15.7008,3177.9,3177.5,0.40742833]
[1763297519796,15.7008,3177.9,3177.5,1.03272833]
[1763297520994,15.7008,3177.9,3177.5,0.40742833]
[1763297521192,15.7008,3177.9,3177.5,1.03972833]
[1763297523296,2.26565647,3178.1,3178.0,0.3909]
[1763297523591,12.456,3178.1,3178.0,0.3909]
[1763297523795,15.482,3178.1,3178.0,0.3909]
[1763297525194,20.95545647,3178.1,3177.7,3.2078]
[1763297525394,20.95545647,3178.1,3178.0,0.3909]
[1763297525792,20.95445647,3178.1,3178.0,0.3909]
[1763297526100,18.6888,3178.1,3178.0,0.3909]
[1763297527198,18.6888,3178.1,3178.0,1.0232]
[1763297527589,2.26565647,3178.2,3178.1,0.6323]
[1763297527793,17.74565647,3178.2,3177.7,3.2078]
[1763297528101,2.26565647,3178.1,3177.7,3.2078]
[1763297528593,2.26565647,3178.1,3178.0,0.3909]
[1763297528999,5.47345647,3178.1,3178.0,0.3909]
[1763297529189,3.2078,3178.1,3178.0,0.3909]
[1763297530797,3.2078,3178.1,3177.7,3.2078]
[1763297531003,2.26637735,3178.0,3177.7,3.2078]
[1763297531201,15.478,3177.9,3177.7,3.2078]
[1763297532504,17.74437735,3177.9,3177.7,3.2078]
[1763297533609,17.74437735,3177.9,3177.5,0.39482833]
[1763297533799,17.74437735,3177.9,3177.5,1.02712833]
[1763297534802,2.26637735,3178.1,3178.0,0.3555]
[1763297535017,17.74237735,3178.1,3178.0,0.3555]
[1763297535702,17.74237735,3178.1,3177.5,0.39482833]
[1763297535703,20.95017735,3178.1,3177.5,0.39482833]
[1763297535910,2.26637735,3177.9,3177.5,0.98302833]
[1763297536213,15.476,3177.8,3177.7,0.5882]
[1763297536610,15.475,3177.8,3177.7,0.5882]
[1763297538214,15.475,3177.8,3177.5,0.39482833]
[1763297538911,2.26637735,3177.9,3177.5,0.39482833]
[1763297539215,15.474,3177.8,3177.5,0.39482833]
[1763297539810,15.474,3177.8,3177.3,0.00472649]
[1763297539811,3.2078,3177.7,3177.3,0.00472649]
[1763297540010,15.474,3177.6,3177.5,0.3555]
[1763297540316,15.473,3177.6,3177.5,0.3555]
[1763297540714,15.473,3177.6,3177.5,0.9437]
[1763297541112,15.473,3177.6,3177.5,0.94756566]
[1763297541913,3.2078,3177.8,3177.7,0.5882]
[1763297542118,15.473,3177.8,3177.5,0.94756566]
[1763297543320,18.6808,3177.8,3177.5,0.94756566]
[1763297545615,18.6808,3177.8,3177.5,0.35936566]
[1763297546418,20.94717735,3177.8,3177.5,0.35936566]
[1763297546619,2.26637735,3177.7,3177.5,0.35936566]
[1763297546819,2.26637735,3177.7,3177.5,0.94756566]
[1763297548321,17.73937735,3177.8,3177.5,0.94756566]
[1763297549124,17.73937735,3177.8,3177.5,0.35936566]
[1763297551118,17.73937735,3177.8,3177.5,0.93106566]
[1763297551520,17.73937735,3177.8,3177.5,0.35936566]
[1763297552022,17.73937735,3177.8,3177.5,0.93106566]
[1763297554025,2.26637735,3177.8,3177.7,0.5717]
[1763297554322,15.468,3177.8,3177.5,0.35936566]
[1763297557533,15.468,3177.8,3177.5,0.93106566]
[1763297558128,15.467,3177.7,3177.6,0.5717]
[1763297559021,3.2078,3177.9,3177.6,0.5717]
[1763297559221,15.465,3177.8,3177.6,0.5717]
[1763297559524,15.465,3177.8,3177.7,0.5717]
[1763297559925,15.465,3177.8,3177.5,0.35936566]
[1763297560227,3.2078,3177.9,3177.5,0.93106566]
[1763297560430,15.465,3177.7,3177.5,0.93106566]
[1763297564326,15.463,3177.6,3177.5,0.93106566]
[1763297565133,3.2078,3177.9,3177.5,0.93106566]
[1763297565334,15.462,3177.6,3177.5,0.93106566]
[1763297566133,5.47417735,3178.0,3177.5,0.93106566]
[1763297566336,15.461,3177.9,3177.5,0.35936566]
[1763297567434,15.461,3177.9,3177.5,0.93106566]
[1763297572735,15.461,3177.9,3177.5,0.35936566]
[1763297575038,5.47417735,3178.0,3177.5,0.35936566]
[1763297575238,15.457,3177.8,3177.5,0.93106566]
[1763297577238,5.47417735,3178.0,3177.9,0.5717]
[1763297577539,3.2078,3178.0,3177.6,3.2078]
[1763297577740,15.455,3177.9,3177.6,3.7795]
[1763297578841,15.455,3177.9,3177.6,0.5717]
[1763297579241,15.455,3177.9,3177.5,0.35936566]
[1763297580246,17.72137735,3177.9,3177.5,0.35936566]
[1763297580439,17.72137735,3177.9,3177.5,0.88166566]
[1763297580644,3.2078,3178.1,3177.5,0.88166566]
[1763297580645,15.453,3177.8,3177.5,0.88166566]
[1763297583943,15.452,3177.7,3177.5,0.88166566]
[1763297586338,15.452,3177.7,3177.5,0.35936566]
[1763297592048,15.447,3177.6,3177.5,0.35936566]
[1763297594552,5.47417735,3177.9,3177.5,0.88166566]
[1763297594749,15.445,3177.8,3177.5,0.88166566]
[1763297596350,2.26637735,3177.9,3177.7,0.5148]
[1763297596553,15.445,3177.8,3177.6,3.2078]
[1763297597356,15.445,3177.8,3177.5,0.87416566]
[1763297604959,15.445,3177.8,3177.5,0.35936566]
[1763297606261,17.71137735,3177.8,3177.5,0.35936566]
[1763297606561,2.26637735,3177.7,3177.5,0.83006566]
[1763297607258,17.71137735,3177.8,3177.5,0.83006566]
[1763297610361,17.71137735,3177.8,3177.5,0.35936566]
[1763297611464,2.26637735,3177.8,3177.5,0.35936566]
[1763297611653,15.436,3177.7,3177.5,0.35936566]
[1763297613152,2.26637735,3177.8,3177.5,0.35936566]
[1763297613354,15.436,3177.6,3177.5,0.35936566]
[1763297614067,2.26637735,3177.8,3177.5,0.35936566]
[1763297614263,15.435,3177.7,3177.5,0.35936566]
[1763297620165,5.47417735,3177.8,3177.5,0.84886566]
[1763297620372,15.431,3177.7,3177.6,0.4895]
[1763297620572,15.431,3177.7,3177.5,0.35936566]
[1763297626887,15.431,3177.7,3177.5,0.27686566]
[1763297627076,3.2078,3177.8,3177.7,0.4895]
[1763297627379,18.6348,3177.8,3177.5,0.76636566]
[1763297630882,18.6348,3177.8,3177.5,0.27686566]
[1763297632787,3.2078,3177.8,3177.5,0.27686566]
[1763297632991,15.423,3177.7,3177.5,0.27686566]
[1763297633991,15.423,3177.7,3177.5,0.76636566]
[1763297634493,3.2078,3177.8,3177.5,0.76636566]
[1763297634686,15.423,3177.6,3177.5,0.76636566]
[1763297634882,15.423,3177.6,3177.5,0.27686566]
[1763297637384,15.423,3177.6,3177.5,0.00386566]
[1763297637586,15.423,3177.6,3177.5,0.27686566]
[1763297639598,15.423,3177.6,3177.5,0.76636566]
[1763297642099,15.423,3177.6,3177.5,0.27686566]
[1763297642598,15.423,3177.6,3177.5,0.70466566]
[1763297644902,15.423,3177.6,3177.5,0.27686566]
[1763297645990,15.423,3177.6,3177.5,0.70466566]
[1763297646601,15.423,3177.6,3177.5,0.27686566]
[1763297651503,15.423,3177.6,3177.5,0.70466566]
[1763297654800,5.47417735,3177.9,3177.5,0.70466566]
[1763297655001,15.409,3177.8,3177.5,0.70466566]
[1763297656197,15.409,3177.8,3177.5,0.27686566]
[1763297657207,15.409,3177.7,3177.6,0.4114]
[1763297659509,15.409,3177.7,3177.5,0.27686566]
[1763297676930,15.409,3177.7,3177.6,0.365]
[1763297679531,5.47417735,3177.9,3177.6,0.365]
[1763297679730,15.395,3177.8,3177.6,0.365]
[1763297680030,15.395,3177.8,3177.5,0.27686566]
[1763297682728,15.393,3177.7,3177.6,3.5728]
[1763297685524,15.393,3177.7,3177.6,0.365]
[1763297690036,15.393,3177.7,3177.5,3.48466566]
[1763297695433,15.393,3177.7,3177.5,0.27686566]
[1763297696336,15.393,3177.7,3177.6,0.365]
[1763297697233,2.26637735,3178.1,3178.0,0.2345]
[1763297697438,17.64937735,3178.1,3178.0,0.2345]
[1763297699740,15.383,3178.1,3177.6,3.2078]
[1763297699940,2.26684962,3178.0,3177.6,3.2078]
[1763297713852,2.26684962,3177.9,3177.5,0.27686566]
[1763297714151,15.373,3177.8,3177.5,0.27686566]
[1763297715255,15.373,3177.8,3177.7,0.348]
[1763297719459,15.373,3177.8,3177.5,0.27686566]
[1763297733579,1.70051376,3177.6,3177.5,0.27686566]
[1763297733879,1.70051376,3177.6,3177.5,0.59476566]
[1763297734079,1.69401623,3178.0,3177.9,0.3179]
[1763297734275,6.00099042,3178.6,3178.5,0.1879]
[1763297734474,18.15654232,3178.7,3178.5,0.1879]
[1763297734688,0.0023519,3178.7,3178.6,1.13529935]
[1763297734979,3.2078,3179.4,3179.3,0.3179]
[1763297735178,18.5688,3179.4,3179.3,0.3179]
[1763297735768,18.57138487,3179.4,3179.3,0.3179]
[1763297737390,18.57138487,3179.4,3179.0,0.1926189]
[1763297738271,18.57138487,3179.4,3179.0,0.0047189]
[1763297738474,18.57138487,3179.4,3178.6,3.2078]
[1763297738785,18.57138487,3179.4,3178.0,0.1879]
[1763297738786,3.2078,3178.8,3178.1,3.2078]
[1763297738986,15.357,3178.7,3178.5,0.1879]
[1763297739174,15.357,3178.7,3178.1,3.2078]
[1763297739478,15.36169362,3178.7,3178.1,3.2125189]
[1763297739778,3.2078,3178.4,3177.7,3.2078]
[1763297740080,15.356,3178.3,3177.7,3.2078]
[1763297741184,15.356,3178.2,3178.0,0.1879]
[1763297741775,3.2078,3178.3,3178.0,0.1879]
[1763297742286,15.355,3178.2,3178.0,0.1879]
[1763297742884,15.355,3178.2,3177.7,3.2125189]
[1763297744487,3.2078,3178.3,3178.0,0.1879]
[1763297744779,15.354,3178.2,3177.7,3.2125189]
[1763297745176,15.354,3178.2,3177.7,0.0047189]
[1763297746584,3.2078,3177.9,3177.3,2.84851344]
[1763297746779,3.2078,3177.4,3176.2,0.84742235]
[1763297746982,3.2078,3176.4,3175.5,0.1879]
[1763297747180,3.2078,3175.8,3175.5,0.1879]
[1763297747398,3.2078,3175.8,3175.3,3.2078]
[1763297747399,7.862,3175.7,3174.9,3.2078]
[1763297747686,3.2078,3175.2,3175.0,0.00345238]
[1763297747988,3.2078,3175.2,3174.0,0.1879]
[1763297747989,13.599,3175.1,3174.0,0.1879]
[1763297748281,3.2078,3174.1,3173.5,0.1879]
[1763297748484,3.2078,3173.6,3172.8,3.2078]
[1763297748789,3.2078,3174.2,3174.0,0.1879]
[1763297748979,15.354,3174.1,3174.0,0.1879]
[1763297749883,15.354,3174.1,3173.5,0.1879]
[1763297750789,3.2078,3173.8,3173.0,0.1958826]
[1763297751883,3.2078,3173.8,3173.5,0.1879]
[1763297752089,3.2078,3173.8,3173.7,0.3179]
[1763297752282,6.2588,3173.8,3173.5,0.1879]
[1763297753081,3.2078,3173.8,3173.5,0.1879]
[1763297753279,3.051,3173.7,3173.5,0.1879]
[1763297753479,3.2078,3173.8,3173.7,0.3179]
[1763297753682,0.00472657,3174.4,3174.3,0.3179]
[1763297753881,4.65172657,3174.4,3174.3,0.3179]
[1763297754287,4.65172657,3174.4,3174.0,0.1879]
[1763297756490,4.65172657,3174.4,3173.6,3.2078]
[1763297756684,3.2078,3174.2,3173.6,3.2078]
[1763297758084,15.363,3174.3,3174.0,0.1879]
[1763297758791,3.2078,3174.1,3173.5,0.1879]
[1763297759692,3.2078,3174.1,3173.2,3.2078]
[1763297759890,3.2078,3173.7,3173.2,3.2078]
[1763297760088,15.364,3173.6,3173.2,3.2078]
[1763297760488,15.364,3173.6,3173.0,0.1958826]
[1763297761691,3.2078,3173.1,3173.0,0.1958826]
[1763297761888,3.21067404,3173.1,3173.0,0.1958826]
[1763297765200,3.21067404,3173.1,3173.0,0.0079826]
[1763297766192,3.21067404,3173.1,3173.0,0.2116826]
[1763297770303,3.21067404,3173.1,3173.0,0.0079826]
[1763297771997,3.21067404,3173.1,3173.0,0.5578826]
[1763297772299,3.21067404,3173.1,3173.0,0.2116826]
[1763297777803,0.00287404,3173.1,3173.0,0.2116826]
[1763297778102,9.21067404,3173.1,3172.0,0.2037]
[1763297778305,3.2078,3172.4,3172.0,0.2037]
[1763297778505,15.368,3172.3,3172.0,0.2037]
[1763297779002,15.368,3172.3,3172.0,0.20674856]
[1763297780397,15.368,3172.3,3171.0,1.88494858]
[1763297780398,6.0,3172.2,3170.8,1.12956282]
[1763297780603,15.368,3172.3,3170.0,0.1846]
[1763297780604,3.2078,3170.9,3170.0,0.1846]
[1763297780804,3.2078,3170.3,3170.0,0.1846]
[1763297781001,3.047,3170.2,3170.0,0.1846]
[1763297781202,1.68973961,3170.1,3170.0,0.1846]
[1763297781406,1.69322429,3170.1,3170.0,0.49794483]
[1763297781603,0.00348468,3170.1,3170.0,6.49794483]
[1763297781804,0.84839524,3170.1,3170.0,6.49794483]
[1763297782109,0.00348468,3170.1,3170.0,6.49794483]
[1763297782311,0.8475679,3170.1,3170.0,6.49794483]
[1763297782706,0.8475679,3170.1,3170.0,0.49794483]
[1763297783312,0.00348468,3170.1,3170.0,0.49794483]
[1763297783700,0.00348468,3170.1,3170.0,0.00364483]
[1763297783907,0.00348468,3170.1,3169.0,0.1846]
[1763297783908,1.1299646,3170.1,3169.0,0.1846]
[1763297784109,0.00348468,3170.1,3170.0,0.1846]
[1763297784412,17.66628468,3170.1,3170.0,0.1846]
[1763297784613,17.66628468,3170.1,3169.0,0.1846]
[1763297784803,3.2078,3169.6,3169.5,0.18738107]
[1763297786010,3.2078,3169.6,3169.0,0.1846]
[1763297786215,3.2078,3169.1,3169.0,0.4943]
[1763297787010,3.2078,3169.1,3169.0,0.49673712]
[1763297787607,5.261,3169.4,3169.3,0.3097]
[1763297788603,5.261,3169.4,3169.0,0.18703712]
[1763297788800,3.2078,3169.1,3169.0,0.18703712]
[1763297789004,3.2078,3169.1,3169.0,0.61883712]
[1763297790609,3.2078,3169.1,3169.0,0.18703712]
[1763297791006,3.2078,3169.1,3169.0,0.61883712]
[1763297791816,4.901,3169.3,3169.2,0.4318]
[1763297792116,8.1088,3169.3,3169.2,0.4318]
[1763297793311,3.2078,3169.3,3169.2,6.4318]
[1763297793607,3.21128468,3170.1,3170.0,0.7104]
[1763297793808,3.92450535,3170.1,3170.0,0.2786]
[1763297794417,3.92450535,3170.1,3170.0,0.7104]
[1763297795613,0.00472657,3170.4,3170.3,0.4318]
[1763297796607,0.00832382,3170.4,3170.3,0.4318]
[1763297798520,0.00832382,3170.4,3169.5,0.2786]
[1763297798714,0.8389631,3169.6,3169.5,0.2786]
[1763297798911,19.72341747,3169.6,3169.0,3.39483712]
[1763297799120,0.83889419,3169.2,3169.0,3.39483712]
[1763297800618,0.83889419,3169.2,3169.1,0.4318]
[1763297801319,0.83937695,3169.2,3169.1,0.4318]
[1763297802318,1.11852559,3169.3,3169.1,0.4318]
[1763297803225,1.11852559,3169.3,3169.2,0.4318]
[1763297804225,1.67875359,3169.4,3169.2,0.4318]
[1763297804526,1.12038176,3169.3,3169.2,0.4318]
[1763297804734,0.84047374,3169.6,3169.5,0.7104]
[1763297804915,0.84047374,3169.8,3169.7,0.4318]
[1763297805318,0.84047374,3169.9,3169.7,0.4318]
[1763297805621,0.224,3169.1,3169.0,3.39483712]
[1763297805933,1.06505488,3169.1,3169.0,3.39483712]
[1763297806227,0.224,3169.1,3169.0,3.21023712]
[1763297808119,2.25529983,3169.4,3169.0,3.92063712]
[1763297808330,0.224,3169.1,3169.0,3.48883712]
[1763297811132,0.224,3169.1,3169.0,3.21023712]
[1763297811736,0.224,3169.1,3169.0,3.48883712]
[1763297812530,0.224,3169.1,3169.0,3.92063712]
[1763297813024,0.224,3169.1,3169.0,3.48883712]
[1763297813330,0.224,3169.1,3169.0,3.21023712]
[1763297813530,2.79319042,3169.4,3169.0,3.92063712]
[1763297814125,0.224,3169.1,3169.0,3.21023712]
[1763297815032,0.224,3169.1,3169.0,3.48883712]
[1763297815937,0.224,3169.1,3169.0,0.28103712]
[1763297816438,3.2078,3169.2,3169.1,0.4318]
[1763297816833,0.224,3169.1,3169.0,0.28103712]
[1763297817033,3.2078,3169.2,3169.1,0.4318]
[1763297817438,3.4318,3169.2,3169.1,0.4318]
[1763297819635,3.2078,3169.2,3169.1,0.4318]
[1763297820831,5.46312208,3169.2,3169.1,0.4318]
[1763297821430,0.4039,3169.1,3169.0,0.28103712]
[1763297821630,2.65922208,3169.1,3169.0,0.28103712]
[1763297821834,14.63732208,3169.1,3169.0,0.78743712]
[1763297822034,5.46312208,3169.2,3169.1,0.5064]
[1763297822231,3.2078,3169.2,3169.1,0.5064]
[1763297822641,15.389,3169.3,3169.2,0.5064]
[1763297823336,15.7929,3169.3,3169.2,0.5064]
[1763297823538,0.4039,3169.1,3169.0,0.28103712]
[1763297824244,0.4039,3169.1,3169.0,0.78743712]
[1763297826238,2.65922208,3169.1,3169.0,0.78743712]
[1763297826747,2.25532208,3169.2,3169.1,0.5064]
[1763297827138,17.64432208,3169.3,3169.2,0.5064]
[1763297827340,15.7929,3169.3,3169.0,3.48883712]
[1763297827543,0.4039,3169.1,3169.0,0.78743712]
[1763297827945,2.2604034,3169.2,3169.1,0.5064]
[1763297828133,15.389,3169.3,3169.1,0.5064]
[1763297828339,15.389,3169.3,3169.2,0.5064]
[1763297828540,2.79319042,3169.4,3169.3,0.5064]
[1763297828847,0.4039,3169.1,3169.0,3.99523712]
[1763297829040,2.2641527,3169.2,3169.0,3.99523712]
[1763297829241,2.2641527,3169.2,3169.1,0.5064]
[1763297829641,0.4039,3169.2,3169.1,0.5064]
[1763297831241,2.79319042,3169.5,3169.4,0.5064]
[1763297831442,16.03414362,3169.6,3169.5,0.2958]
[1763297831648,16.03414362,3169.6,3169.5,0.8022]
[1763297832240,13.77,3169.6,3169.5,0.8022]
[1763297832647,14.1739,3169.6,3169.5,0.8022]
[1763297833259,16.43804362,3169.6,3169.5,0.2958]
[1763297833546,14.1739,3169.6,3169.5,0.8022]
[1763297833941,3.19709042,3169.8,3169.7,0.5064]
[1763297834144,18.58509042,3169.8,3169.7,0.5064]
[1763297834346,0.321,3169.6,3169.5,0.2958]
[1763297834854,0.321,3169.6,3169.5,0.7642]
[1763297837948,15.708,3169.6,3169.5,0.7642]
[1763297841352,15.708,3169.6,3169.0,3.48883712]
[1763297841556,0.321,3169.1,3169.0,3.95723712]
[1763297842350,15.387,3169.2,3169.1,0.4684]
[1763297842351,15.708,3169.2,3169.1,0.4684]
[1763297844857,2.26109985,3169.4,3169.3,0.4684]
[1763297845061,2.26109985,3169.6,3169.5,0.7676]
[1763297845268,17.64809985,3169.6,3169.5,0.7676]
[1763297845561,17.96909985,3169.6,3169.5,0.7676]
[1763297846259,2.26109985,3169.6,3169.5,0.7676]
[1763297846466,17.64809985,3169.6,3169.5,0.7676]
[1763297846860,2.26109985,3169.6,3169.5,0.7676]
[1763297847165,17.64809985,3169.6,3169.5,0.7676]
[1763297848452,15.387,3169.6,3169.5,0.7676]
[1763297849363,17.64709985,3169.7,3169.6,0.4684]
[1763297849862,0.2522,3169.6,3169.5,0.2992]
[1763297850163,17.64709985,3169.7,3169.4,3.2078]
[1763297850164,0.2522,3169.5,3169.4,3.2078]
[1763297850360,2.51490874,3169.5,3169.4,3.2078]
[1763297854370,0.2522,3169.1,3169.0,3.92543712]
[1763297854567,15.6372,3169.1,3169.0,3.92543712]
[1763297855862,15.6372,3169.1,3169.0,3.48883712]
[1763297856063,0.2522,3168.8,3168.0,0.2786]
[1763297856267,15.6372,3168.8,3168.0,0.2786]
[1763297856466,1.13125727,3168.1,3168.0,0.7152]
[1763297857062,0.00228543,3168.1,3168.0,0.71848792]
[1763297857370,0.25448543,3168.1,3168.0,0.71848792]
[1763297858366,1.94942785,3168.1,3167.5,3.4739]
[1763297858571,0.3337,3167.2,3166.7,3.2078]
[1763297858770,0.3337,3167.2,3166.0,0.2661]
[1763297858771,2.2590687,3166.9,3166.3,3.6444]
[1763297858967,1.69416617,3166.5,3166.4,0.4366]
[1763297859164,17.08016617,3166.5,3166.4,0.4366]
[1763297859367,16.51256843,3166.5,3166.4,0.4366]